bitfinex-derivatives/quotes_SOLF0:USTF0_20240908
["timestamp","ask_amount","ask_price","bid_price","bid_amount"]
[1725829744347,0.2,129.17,129.13,8.35]
[1725829744827,0.2,129.17,129.09,6.52500577]
[1725829745138,0.2,129.17,129.13,8.35]
[1725829745331,0.2,129.17,129.14,8.35]
[1725829745728,3.0972,129.16,129.14,8.35]
[1725829746035,0.2,129.17,129.14,8.35]
[1725829746336,0.2,129.17,129.16,8.35]
[1725829747332,0.2,129.17,129.16,3.42]
[1725829747525,0.2,129.17,129.16,11.77]
[1725829748442,0.2,129.24,129.16,11.77]
[1725829748630,0.2,129.24,129.22,8.35]
[1725829748833,3.0954,129.23,129.22,8.35]
[1725829749131,0.2,129.24,129.22,8.35]
[1725829749328,3.0944,129.28,129.23,8.35]
[1725829749531,6.65179479,129.29,129.21,3.0957]
[1725829749731,0.28449921,129.28,129.24,8.35]
[1725829749929,3.0944,129.27,129.25,8.35]
[1725829750537,3.0942,129.28,129.25,8.35]
[1725829750834,5.32479479,129.29,129.25,3.32]
[1725829751039,0.28449372,129.28,129.25,3.32]
[1725829751730,3.0946,129.26,129.25,3.32]
[1725829754733,3.37913551,129.26,129.25,3.32]
[1725829755841,3.0946,129.26,129.25,3.32]
[1725829756049,3.0959,129.21,129.2,8.35]
[1725829756345,8.35,129.24,129.18,8.35]
[1725829756736,1.3143,129.25,129.18,8.35]
[1725829756936,8.35,129.23,129.18,8.35]
[1725829757139,3.0963,129.2,129.19,7.58]
[1725829759457,3.0963,129.2,129.19,13.77]
[1725829761541,3.0956,129.22,129.19,22.12]
[1725829761850,1.3143,129.25,129.21,8.35]
[1725829762041,8.35,129.28,129.22,8.35]
[1725829762346,3.0953,129.24,129.2,1.3599]
[1725829762546,8.35,129.28,129.2,1.3599]
[1725829762753,3.0953,129.24,129.23,8.35]
[1725829763445,3.095,129.25,129.23,8.35]
[1725829763853,3.095,129.25,129.24,8.35]
[1725829764250,3.095,129.25,129.24,9.49]
[1725829768357,6.70869479,129.29,129.24,9.49]
[1725829768358,3.0947,129.26,129.24,9.49]
[1725829768556,0.2,129.3,129.25,8.35]
[1725829768760,0.2,129.3,129.27,8.35]
[1725829769056,0.2,129.3,129.29,8.35]
[1725829769364,3.78279174,129.34,129.29,8.35]
[1725829769552,3.78279174,129.34,129.31,8.35]
[1725829769553,3.0933,129.32,129.31,8.35]
[1725829771262,0.2,129.43,129.27,4.0064]
[1725829771448,8.35,129.4,129.27,7.81171704]
[1725829771648,1.3331,129.39,129.34,8.35]
[1725829771864,3.0918,129.38,129.34,8.35]
[1725829772158,1.3331,129.39,129.35,3.42]
[1725829772352,3.0921,129.37,129.35,3.42]
[1725829773047,3.0923,129.36,129.35,3.42]
[1725829774466,7.02781067,129.36,129.35,0.3162]
[1725829774667,3.0939,129.29,129.28,20.79]
[1725829776561,3.0942,129.28,129.27,1.3413]
[1725829777063,3.0942,129.28,129.27,9.2513]
[1725829777665,3.0942,129.28,129.27,7.91]
[1725829780868,3.0942,129.28,129.27,8.7174]
[1725829781372,7.05240433,129.28,129.27,8.7174]
[1725829781756,7.05240433,129.28,129.27,5.8724]
[1725829782071,7.33693064,129.28,129.27,5.8724]
[1725829783169,7.05240433,129.28,129.27,5.8724]
[1725829783368,3.0942,129.28,129.27,5.8724]
[1725829786276,3.0942,129.28,129.27,11.2824]
[1725829787479,3.0939,129.29,129.27,11.2824]
[1725829788372,3.0939,129.29,129.27,32.0724]
[1725829788979,25.62922078,129.35,129.27,32.0724]
[1725829789176,0.28440779,129.34,129.29,20.79]
[1725829789477,3.0929,129.34,129.31,20.79]
[1725829789872,3.0929,129.34,129.31,21.93]
[1725829790671,3.0927,129.35,129.31,21.93]
[1725829791579,3.0927,129.35,129.32,2.6482]
[1725829791774,3.0916,129.39,129.33,20.79]
[1725829791980,0.28433557,129.38,129.33,20.79]
[1725829792177,0.28433557,129.41,129.33,20.79]
[1725829792377,3.0923,129.36,129.33,20.79]
[1725829792980,22.1064,129.42,129.33,20.79]
[1725829792981,3.0922,129.37,129.33,20.79]
[1725829794288,3.0922,129.37,129.33,22.1841]
[1725829794581,3.0922,129.37,129.34,6.91]
[1725829795086,4.08618245,129.43,129.35,20.79]
[1725829795290,0.284263,129.42,129.38,20.79]
[1725829795589,3.0915,129.4,129.36,20.79]
[1725829795776,0.2,129.43,129.36,20.79]
[1725829795979,0.2,129.5,129.34,6.91]
[1725829796181,0.28415283,129.49,129.42,20.79]
[1725829796472,0.28415283,129.49,129.41,153.86007286]
[1725829796776,3.0905,129.44,129.41,153.86007286]
[1725829796977,3.87918373,129.48,129.41,155.15687286]
[1725829797170,3.0905,129.44,129.41,1.2968]
[1725829797371,3.83667001,129.49,129.42,20.79]
[1725829797578,0.2,129.5,129.42,20.79]
[1725829797776,3.0898,129.47,129.42,20.79]
[1725829797989,4.1599598,129.5,129.42,20.79]
[1725829798289,4.1599598,129.5,129.41,2.6175]
[1725829798290,0.28409789,129.49,129.48,20.79]
[1725829798486,0.2,129.5,129.48,20.79]
[1725829798673,0.2,129.5,129.46,20.79]
[1725829799288,0.2,129.56,129.49,20.79]
[1725829799483,0.28396568,129.55,129.49,20.79]
[1725829799991,594.55799706,129.75,129.54,20.79]
[1725829800193,20.79,129.65,129.55,1.314]
[1725829800383,0.28388844,129.62,129.55,22.104]
[1725829800685,0.28381161,129.62,129.55,1.314]
[1725829800894,0.2,129.63,129.55,1.314]
[1725829800895,0.2,129.63,129.55,22.104]
[1725829801202,0.28380346,129.62,129.55,22.104]
[1725829801486,20.79,129.61,129.55,1.314]
[1725829801798,20.79,129.61,129.53,1.3501]
[1725829802091,20.79,129.61,129.51,1.3638]
[1725829802092,0.28387761,129.6,129.51,1.3638]
[1725829802278,0.28387761,129.6,129.51,9.1138]
[1725829802586,25.96,129.59,129.51,10.2538]
[1725829803286,4.14584363,129.63,129.51,10.2538]
[1725829803489,0.28390208,129.62,129.53,25.96]
[1725829804490,3.0868,129.59,129.53,25.96]
[1725829804879,3.0868,129.59,129.54,1.2978]
[1725829805177,25.96,129.6,129.52,1.3012]
[1725829805384,0.28389829,129.59,129.52,1.3012]
[1725829805587,3.0877,129.55,129.52,1.3012]
[1725829805788,25.96,129.59,129.52,1.3012]
[1725829805979,0.28389488,129.58,129.52,1.3012]
[1725829806489,3.0875,129.56,129.52,1.3012]
[1725829806784,0.28393273,129.55,129.51,8.89]
[1725829806984,3.0882,129.53,129.51,8.89]
[1725829807185,3.92879877,129.56,129.51,8.89]
[1725829807373,0.28394964,129.55,129.51,8.89]
[1725829807582,3.85155904,129.56,129.51,8.89]
[1725829807889,25.96,129.57,129.51,8.89]
[1725829807890,0.2839321,129.55,129.51,8.89]
[1725829808078,3.0877,129.56,129.51,8.89]
[1725829808486,25.96,129.6,129.51,8.89]
[1725829808685,0.28392158,129.59,129.51,8.89]
[1725829810192,3.0872,129.57,129.51,8.89]
[1725829810604,25.96,129.62,129.52,25.96]
[1725829810896,0.28382936,129.61,129.51,8.89]
[1725829811086,0.2,129.63,129.56,25.96]
[1725829811291,0.2,129.63,129.57,2.6625]
[1725829811292,3.36988243,129.62,129.57,2.6625]
[1725829811491,3.0861,129.62,129.57,2.6625]
[1725829812097,3.0865,129.61,129.57,10.3625]
[1725829812298,0.2,129.63,129.57,10.3625]
[1725829812901,3.0863,129.61,129.57,10.3625]
[1725829814490,3.0867,129.6,129.57,10.3625]
[1725829814793,0.2,129.63,129.57,10.3625]
[1725829814999,26.16,129.63,129.57,10.3625]
[1725829815206,3.087,129.59,129.57,10.3625]
[1725829815589,3.087,129.59,129.57,13.87]
[1725829816000,3.087,129.58,129.57,13.87]
[1725829817003,3.087,129.58,129.57,21.86]
[1725829818005,3.37086557,129.58,129.57,21.86]
[1725829818609,3.37086557,129.58,129.57,14.16]
[1725829818812,3.37086557,129.58,129.57,7.99]
[1725829819303,3.0884,129.53,129.51,1.14]
[1725829819501,25.96,129.57,129.51,1.14]
[1725829819999,3.0884,129.52,129.51,1.14]
[1725829820403,3.0884,129.52,129.51,7.31]
[1725829821106,3.0884,129.52,129.51,7.51]
[1725829821407,29.3323852,129.52,129.51,7.51]
[1725829821596,29.3323852,129.52,129.51,6.37]
[1725829822103,3.3723852,129.52,129.51,0.2]
[1725829822511,29.3323852,129.52,129.51,0.2]
[1725829823100,3.0891,129.49,129.48,5.22]
[1725829823411,1.9491,129.49,129.48,5.22]
[1725829823600,1.9491,129.49,129.48,11.39]
[1725829823803,27.9091,129.49,129.48,11.39]
[1725829824106,31.81112441,129.49,129.48,6.17]
[1725829824699,1.9491,129.49,129.48,6.17]
[1725829827997,25.96,129.54,129.48,6.17]
[1725829828198,0.28399506,129.53,129.48,6.17]
[1725829830606,25.96,129.52,129.48,6.17]
[1725829831301,3.0891,129.49,129.48,6.17]
[1725829836516,29.0491,129.49,129.48,6.17]
[1725829836813,3.0896,129.47,129.46,5.23]
[1725829837008,3.90743316,129.5,129.42,4.0535]
[1725829837211,25.96,129.5,129.42,4.0535]
[1725829837412,53.02834477,129.5,129.42,4.0535]
[1725829837614,0.28406739,129.49,129.42,4.0535]
[1725829837814,3.0901,129.45,129.42,4.0535]
[1725829838213,1.0,129.49,129.42,30.0135]
[1725829838407,112.3583926,129.54,129.44,25.96]
[1725829838611,0.28399371,129.53,129.44,31.2]
[1725829839008,3.0887,129.51,129.44,8.3303]
[1725829839213,3.0887,129.51,129.46,25.96]
[1725829840519,3.089,129.5,129.46,25.96]
[1725829842810,3.0892,129.49,129.44,31.2]
[1725829843313,3.0894,129.48,129.44,31.2]
[1725829843510,49.2,129.53,129.44,31.2]
[1725829843821,25.96,129.51,129.44,5.24]
[1725829844120,0.28402434,129.5,129.44,5.24]
[1725829844418,3.80418823,129.49,129.44,5.24]
[1725829844619,3.0898,129.47,129.44,5.24]
[1725829847417,3.0899,129.46,129.44,5.24]
[1725829847915,25.96,129.53,129.44,31.2]
[1725829848112,0.28403525,129.52,129.44,31.2]
[1725829848515,3.0892,129.49,129.44,31.2]
[1725829848824,25.96,129.53,129.44,34.2903]
[1725829849023,0.2839973,129.52,129.44,34.2903]
[1725829849525,3.089,129.5,129.44,34.2903]
[1725829849726,25.96,129.53,129.44,31.2]
[1725829849927,0.28401123,129.52,129.44,31.2]
[1725829850313,3.0892,129.49,129.44,31.2]
[1725829850726,3.81955177,129.5,129.44,34.2903]
[1725829850924,3.089,129.5,129.44,34.2903]
[1725829851326,3.089,129.5,129.44,36.6303]
[1725829852933,3.0892,129.49,129.44,33.54]
[1725829854126,25.96,129.53,129.44,7.58]
[1725829854127,3.94513137,129.5,129.44,7.58]
[1725829854329,25.96,129.53,129.44,7.58]
[1725829854631,0.28401381,129.52,129.44,7.58]
[1725829854931,3.0894,129.49,129.44,7.58]
[1725829855130,0.28401381,129.52,129.44,7.58]
[1725829855131,3.787188,129.5,129.44,7.58]
[1725829855330,0.28401424,129.49,129.44,7.58]
[1725829855534,3.0896,129.47,129.44,7.58]
[1725829855832,25.96,129.5,129.44,7.58]
[1725829856034,0.28404616,129.49,129.44,7.58]
[1725829856717,3.0899,129.46,129.44,7.58]
[1725829858936,3.0897,129.47,129.44,7.58]
[1725829859533,3.09,129.46,129.44,7.58]
[1725829859838,3.8034155,129.5,129.44,7.58]
[1725829860140,3.09,129.46,129.44,7.58]
[1725829860428,3.87433437,129.47,129.44,7.58]
[1725829860634,20.77,129.5,129.44,7.58]
[1725829860934,3.0896,129.48,129.44,7.58]
[1725829861134,24.72858424,129.5,129.44,7.58]
[1725829861436,0.28406501,129.49,129.44,7.58]
[1725829861935,3.0898,129.47,129.44,7.58]
[1725829862633,3.95858424,129.5,129.44,28.35]
[1725829862831,0.2840507,129.49,129.44,28.35]
[1725829863129,0.2840507,129.48,129.44,28.35]
[1725829863331,20.77,129.52,129.44,28.35]
[1725829863530,3.0892,129.49,129.44,28.35]
[1725829863736,0.2840507,129.48,129.44,28.35]
[1725829865040,3.3734507,129.48,129.44,28.35]
[1725829865240,3.0894,129.48,129.44,7.58]
[1725829865444,15.40198491,129.53,129.44,28.35]
[1725829865732,0.28399646,129.52,129.5,20.77]
[1725829865936,3.802713,129.57,129.51,1.374]
[1725829866121,20.77,129.58,129.51,2.7554]
[1725829866122,3.0879,129.55,129.51,2.7554]
[1725829866330,0.28393651,129.54,129.51,2.7554]
[1725829866727,3.088,129.54,129.51,2.7554]
[1725829867337,6.92628531,129.55,129.51,2.7554]
[1725829867826,3.0878,129.55,129.51,2.7554]
[1725829868030,3.0876,129.56,129.51,2.7554]
[1725829868230,0.28390652,129.55,129.51,2.7554]
[1725829868445,0.28390652,129.55,129.51,8.0054]
[1725829868966,3.37170652,129.55,129.51,8.0054]
[1725829869128,3.0878,129.55,129.51,8.0054]
[1725829871443,15.39491582,129.61,129.53,20.77]
[1725829871644,0.28385903,129.6,129.55,20.77]
[1725829871853,0.28385903,129.62,129.57,20.77]
[1725829872036,0.28385903,129.59,129.58,2.5359]
[1725829872351,0.2,129.63,129.58,2.5359]
[1725829872540,0.28382085,129.62,129.58,2.5359]
[1725829874446,3.0863,129.61,129.58,2.5359]
[1725829874648,0.28382085,129.6,129.58,2.5359]
[1725829874840,3.0863,129.61,129.58,2.5359]
[1725829875041,3.37038526,129.6,129.58,2.5359]
[1725829875232,3.0866,129.6,129.58,2.5359]
[1725829875632,3.0863,129.61,129.58,2.5359]
[1725829876033,0.28377242,129.6,129.58,2.5359]
[1725829876639,0.2,129.63,129.51,9.02539198]
[1725829876640,0.28377242,129.59,129.52,27.2897]
[1725829876840,25.94,129.62,129.52,27.2897]
[1725829876841,0.28377242,129.58,129.52,27.2897]
[1725829877140,3.88974675,129.59,129.52,27.2897]
[1725829877342,0.2,129.63,129.52,2.7076]
[1725829877343,0.28381053,129.58,129.52,2.7076]
[1725829877537,0.28381053,129.57,129.52,4.0262]
[1725829878054,4.22242829,129.56,129.52,4.0262]
[1725829878252,25.94,129.6,129.52,4.0262]
[1725829878456,0.28385746,129.59,129.52,4.0262]
[1725829878647,5.10508896,129.59,129.52,4.0262]
[1725829878952,0.28385746,129.58,129.52,4.0262]
[1725829879253,3.0877,129.55,129.52,4.0262]
[1725829879749,25.94,129.58,129.52,2.6683]
[1725829879952,0.28386569,129.57,129.52,2.6683]
[1725829881058,3.0879,129.55,129.52,2.6683]
[1725829881357,25.94,129.58,129.52,2.6683]
[1725829881665,0.28386257,129.57,129.52,1.3186]
[1725829881952,0.28386257,129.57,129.53,2.36]
[1725829881953,1.28386257,129.57,129.53,2.36]
[1725829882157,0.28386257,129.56,129.53,2.36]
[1725829882868,26.22386257,129.56,129.53,2.36]
[1725829883155,3.088,129.54,129.53,2.36]
[1725829884459,3.3719167,129.54,129.53,2.36]
[1725829885247,3.0884,129.52,129.51,5.25]
[1725829885440,7.19050693,129.52,129.51,5.25]
[1725829890857,3.0887,129.51,129.5,2.36]
[1725829891058,26.2239436,129.51,129.45,1.3461]
[1725829891264,0.2839436,129.5,129.45,1.3461]
[1725829891451,3.0898,129.47,129.45,1.3461]
[1725829891868,26.94,129.51,129.45,1.3461]
[1725829892158,3.0899,129.46,129.45,1.3461]
[1725829892749,3.0899,129.46,129.45,3.7161]
[1725829894857,1.0,129.51,129.45,3.7161]
[1725829895048,0.28400036,129.5,129.45,3.7161]
[1725829895455,3.0893,129.49,129.45,3.7161]
[1725829896262,3.0894,129.48,129.45,3.7161]
[1725829899963,21.77,129.51,129.45,24.4861]
[1725829899964,1.0,129.51,129.45,24.4861]
[1725829901457,3.0889,129.5,129.45,24.4861]
[1725829901972,4.0888,129.51,129.45,27.5761]
[1725829905274,3.089,129.5,129.45,24.4861]
[1725829906877,3.0892,129.49,129.45,24.4861]
[1725829912486,3.089,129.5,129.46,20.77]
[1725829913380,4.0887,129.51,129.46,23.8597]
[1725829914165,1.0,129.51,129.47,3.0896]
[1725829914373,1.0,129.51,129.46,20.77]
[1725829914374,3.81816333,129.52,129.46,20.77]
[1725829914566,20.77,129.55,129.46,20.77]
[1725829914771,20.77,129.53,129.46,20.77]
[1725829914981,0.28396705,129.52,129.46,20.77]
[1725829915185,3.88000309,129.51,129.46,20.77]
[1725829915682,3.0887,129.51,129.46,20.77]
[1725829915886,6.92968284,129.51,129.46,20.77]
[1725829916071,3.0887,129.51,129.46,20.77]
[1725829916268,6.93625061,129.51,129.46,20.77]
[1725829916483,3.0887,129.51,129.47,2.38]
[1725829916984,6.97690211,129.51,129.47,2.38]
[1725829918078,3.88820211,129.51,129.47,2.38]
[1725829918279,3.0885,129.52,129.47,2.38]
[1725829918581,20.77,129.55,129.47,2.38]
[1725829918783,3.0885,129.52,129.47,2.38]
[1725829918984,3.78505756,129.51,129.47,2.38]
[1725829920187,6.87375756,129.51,129.47,2.38]
[1725829920888,3.089,129.5,129.47,2.38]
[1725829921072,3.78505756,129.51,129.47,2.38]
[1725829921386,20.77,129.52,129.47,2.38]
[1725829921587,3.089,129.5,129.47,2.38]
[1725829921886,7.01777111,129.5,129.47,2.38]
[1725829922876,8.3,129.51,129.47,10.68]
[1725829922877,3.0888,129.51,129.47,10.68]
[1725829923078,8.3,129.54,129.49,8.3]
[1725829923380,3.0886,129.52,129.49,8.3]
[1725829923797,8.3,129.55,129.5,8.3]
[1725829924086,8.58395972,129.54,129.49,8.3]
[1725829924286,0.28395972,129.53,129.49,8.3]
[1725829924473,3.0886,129.52,129.47,10.68]
[1725829924677,6.90524348,129.52,129.47,10.68]
[1725829927485,6.90524348,129.52,129.48,8.3]
[1725829927688,3.81664348,129.52,129.48,8.3]
[1725829927886,8.3,129.54,129.49,1.302]
[1725829928092,0.28396395,129.53,129.49,1.302]
[1725829928389,3.90172676,129.52,129.49,1.302]
[1725829928783,8.3,129.54,129.49,1.302]
[1725829928991,0.28396395,129.53,129.49,1.302]
[1725829929182,3.85072884,129.52,129.49,1.302]
[1725829929384,6.93932884,129.52,129.49,1.302]
[1725829929681,3.0886,129.52,129.49,1.302]
[1725829930188,7.02092385,129.52,129.49,1.302]
[1725829931186,3.93232385,129.52,129.49,1.302]
[1725829931390,15.39744233,129.58,129.51,8.3]
[1725829931594,8.5839129,129.57,129.51,8.3]
[1725829931793,0.2839129,129.56,129.51,8.3]
[1725829933193,8.5839129,129.56,129.51,8.3]
[1725829933398,0.28390366,129.55,129.51,8.3]
[1725829933699,8.3,129.56,129.51,8.3]
[1725829933890,11.3876,129.56,129.51,8.3]
[1725829934492,0.2838976,129.55,129.51,8.3]
[1725829934694,3.3716976,129.55,129.51,8.3]
[1725829934991,3.0878,129.55,129.51,10.69]
[1725829937993,3.088,129.54,129.51,2.39]
[1725829942005,3.0882,129.53,129.51,2.39]
[1725829942498,3.0884,129.52,129.51,2.39]
[1725829943096,15.3004241,129.52,129.51,2.39]
[1725829943300,15.58437921,129.52,129.51,2.39]
[1725829943609,7.28437921,129.52,129.51,2.39]
[1725829944000,7.0004241,129.52,129.51,2.39]
[1725829944200,7.28437573,129.52,129.51,2.39]
[1725829946206,7.28438193,129.52,129.51,2.39]
[1725829947503,15.58438193,129.52,129.51,2.39]
[1725829950405,15.58440361,129.52,129.51,2.39]
[1725829953507,15.39744233,129.58,129.51,10.69]
[1725829953711,0.28389022,129.57,129.53,8.3]
[1725829953912,15.39744233,129.66,129.53,8.3]
[1725829954214,8.3,129.59,129.52,9.57]
[1725829954419,12.17506876,129.59,129.52,9.57]
[1725829954622,0.283865,129.58,129.52,12.6584]
[1725829955615,0.283865,129.58,129.53,2.4]
[1725829956913,8.3,129.57,129.53,2.4]
[1725829957926,11.3873,129.57,129.53,2.4]
[1725829959422,3.87506876,129.59,129.54,8.3]
[1725829959615,0.28384471,129.58,129.56,8.3]
[1725829959930,3.9466453,129.6,129.56,8.3]
[1725829960124,0.28381899,129.59,129.54,23.4673]
[1725829961428,0.28381899,129.59,129.54,26.5552]
[1725829961626,20.96,129.63,129.54,23.4673]
[1725829961924,0.28379451,129.62,129.54,23.4673]
[1725829962326,3.0864,129.61,129.55,3.0877]
[1725829962532,0.28379451,129.6,129.55,3.0877]
[1725829963631,3.0861,129.62,129.55,3.0877]
[1725829963834,0.28379648,129.61,129.55,3.0877]
[1725829965034,3.37009648,129.61,129.55,3.0877]
[1725829965238,0.28379648,129.6,129.55,3.0877]
[1725829966818,3.0863,129.61,129.55,3.0877]
[1725829967033,0.28379297,129.6,129.55,3.0877]
[1725829967630,3.0861,129.62,129.55,3.0877]
[1725829967830,0.28379135,129.61,129.55,3.0877]
[1725829968131,3.0861,129.62,129.55,3.0877]
[1725829968336,0.28377618,129.61,129.55,3.0877]
[1725829968529,3.37017618,129.61,129.55,3.0877]
[1725829968835,3.37017618,129.61,129.54,26.5552]
[1725829968836,0.28377744,129.6,129.54,26.5552]
[1725829969037,0.28377744,129.6,129.54,23.4673]
[1725829969238,3.0864,129.61,129.55,3.0877]
[1725829969530,3.99806316,129.63,129.58,20.76]
[1725829969739,3.99806316,129.63,129.59,1.3232]
[1725829970522,7.08386316,129.63,129.59,1.3232]
[1725829971939,0.2,129.63,129.59,1.3232]
[1725829972237,0.2,129.63,129.59,2.6028]
[1725829972945,0.28374681,129.62,129.59,2.6028]
[1725829974340,3.36994681,129.62,129.59,2.6028]
[1725829974542,3.0862,129.62,129.59,2.6028]
[1725829975833,7.10508361,129.63,129.59,2.6028]
[1725829979540,3.2858,129.63,129.59,2.6028]
[1725829979932,0.2,129.63,129.59,2.6028]
[1725829980133,0.2,129.63,129.6,1.263]
[1725829980338,0.2,129.63,129.6,3.683]
[1725829981338,15.58652618,129.69,129.61,20.76]
[1725829981536,0.28369137,129.68,129.61,20.76]
[1725829981742,15.67021755,129.68,129.61,20.76]
[1725829981938,3.0852,129.66,129.61,20.76]
[1725829982145,0.28369424,129.65,129.61,8.3]
[1725829982531,8.3,129.67,129.61,8.3]
[1725829982532,11.385,129.67,129.61,8.3]
[1725829982735,0.28368711,129.66,129.61,8.3]
[1725829983136,3.36878711,129.66,129.61,8.3]
[1725829983444,0.28368711,129.65,129.61,8.3]
[1725829984039,0.28368711,129.65,129.62,8.3]
[1725829984246,3.0849,129.67,129.62,8.3]
[1725829984546,0.283683,129.66,129.62,11.386]
[1725829984756,8.5,129.69,129.62,11.386]
[1725829985045,0.28368076,129.68,129.6,3.683]
[1725829985239,1.28368076,129.68,129.6,3.683]
[1725829985437,11.3855,129.65,129.6,3.683]
[1725829985642,0.28368076,129.64,129.6,3.683]
[1725829985837,4.20202605,129.64,129.6,3.683]
[1725829986045,7.00394529,129.64,129.6,3.683]
[1725829986255,0.28372451,129.63,129.6,3.683]
[1725829987135,16.3845359,129.68,129.6,3.683]
[1725829987334,8.3,129.66,129.6,3.683]
[1725829987541,0.28371353,129.65,129.6,3.683]
[1725829987846,3.36921353,129.65,129.6,3.683]
[1725829988045,0.28371353,129.64,129.6,3.683]
[1725829988343,3.0855,129.65,129.6,3.683]
[1725829988938,3.3692973,129.64,129.6,3.683]
[1725829989137,3.0856,129.64,129.6,3.683]
[1725829989340,1.0,129.68,129.63,8.3]
[1725829989639,1.0,129.68,129.6,3.683]
[1725829989640,8.5,129.76,129.67,8.3]
[1725829989850,4.179056,129.75,129.7,8.3]
[1725829990052,0.28356557,129.74,129.7,8.3]
[1725829990351,0.28356557,129.74,129.6,6.30545847]
[1725829990352,0.28356557,129.74,129.6,2.42]
[1725829990551,11.3839,129.72,129.6,2.42]
[1725829990738,11.3839,129.72,129.66,8.3]
[1725829991049,0.28354297,129.71,129.66,8.3]
[1725829991249,3.0839,129.72,129.67,8.3]
[1725829991437,3.0835,129.73,129.67,8.3]
[1725829991641,0.28353822,129.72,129.69,8.3]
[1725829992038,0.28354105,129.71,129.69,8.3]
[1725829992251,0.2,129.76,129.7,20.75]
[1725829992455,0.28351841,129.75,129.7,20.75]
[1725829992951,0.28351841,129.75,129.66,24.65329018]
[1725829993148,0.28351841,129.75,129.68,20.75]
[1725829993543,3.0834,129.74,129.68,20.75]
[1725829993750,0.28351841,129.73,129.68,20.75]
[1725829994052,0.2835288,129.72,129.67,20.75]
[1725829994646,20.95,129.76,129.67,20.75]
[1725829995142,0.28354008,129.75,129.67,20.75]
[1725829996462,3.0838,129.72,129.67,20.75]
[1725829998960,20.95,129.76,129.67,20.75]
[1725829999151,0.28353963,129.75,129.67,20.75]
[1725830000558,3.0838,129.72,129.67,20.75]
[1725830002352,0.2,129.76,129.68,20.75]
[1725830002552,0.2,129.76,129.7,20.75]
[1725830002862,3.0834,129.74,129.71,1.3122]
[1725830005951,3.0835,129.73,129.71,1.3122]
[1725830006763,0.2,129.76,129.71,1.3122]
[1725830006962,20.75,129.74,129.66,20.75]
[1725830007259,20.75,129.74,129.67,1.3324]
[1725830007458,1.3693,129.75,129.67,1.3324]
[1725830007661,0.2,129.76,129.7,20.75]
[1725830008366,0.2,129.76,129.72,20.75]
[1725830008563,0.2,129.76,129.73,22.0364]
[1725830010279,0.2,129.82,129.75,20.75]
[1725830010575,0.2834166,129.81,129.75,20.75]
[1725830011068,3.0818,129.8,129.75,23.19]
[1725830011259,3.96743661,129.82,129.77,20.75]
[1725830011461,0.28340416,129.81,129.77,20.75]
[1725830012254,0.28340416,129.81,129.75,2.44]
[1725830012255,3.36490416,129.81,129.75,2.44]
[1725830012466,0.28340416,129.8,129.75,23.19]
[1725830012667,0.28340416,129.79,129.75,2.44]
[1725830012970,24.81807124,129.82,129.75,2.44]
[1725830013273,0.28340506,129.81,129.75,2.44]